[Event "Early-Titled-Tuesday-Blitz-April-16-2024"]
[Site "Chess.com"]
[Date "2024.04.16"]
[Round "2"]
[White "the_chess_child"]
[Black "flawian2008"]
[Result "1-0"]
[WhiteElo "2819"]
[BlackElo "2562"]
[TimeControl "180+1"]
[EndTime "8:16:17 PDT"]
[Termination "the_chess_child won by resignation"]

1. e4 {[%clk 0:03:00.5]} 1... c5 {[%clk 0:03:00.4]} 2. Nf3 {[%clk 0:02:56.4]}
2... Nc6 {[%clk 0:03:00.5]} 3. d3 {[%clk 0:02:53.9]} 3... g6 {[%clk 0:03:00.5]}
4. g3 {[%clk 0:02:51.9]} 4... Bg7 {[%clk 0:02:59.6]} 5. Bg2 {[%clk 0:02:52.3]}
5... d6 {[%clk 0:02:59.9]} 6. O-O {[%clk 0:02:52.5]} 6... Nf6 {[%clk 0:03:00]}
7. Re1 {[%clk 0:02:52.3]} 7... O-O {[%clk 0:03:00.3]} 8. h3 {[%clk 0:02:51.5]}
8... Rb8 {[%clk 0:02:55.1]} 9. c3 {[%clk 0:02:50]} 9... b5 {[%clk 0:02:52.8]}
10. d4 {[%clk 0:02:49.5]} 10... cxd4 {[%clk 0:02:44.1]} 11. cxd4 {[%clk
0:02:50.4]} 11... Bb7 {[%clk 0:02:44.8]} 12. Bg5 {[%clk 0:02:38.9]} 12... h6
{[%clk 0:02:39.4]} 13. Bf4 {[%clk 0:02:35.8]} 13... Nd7 {[%clk 0:02:19.5]} 14.
Qd2 {[%clk 0:02:26.3]} 14... Kh7 {[%clk 0:02:17.7]} 15. Nc3 {[%clk 0:02:19.3]}
15... b4 {[%clk 0:02:15.7]} 16. Nd5 {[%clk 0:02:16.7]} 16... e6 {[%clk
0:01:46.9]} 17. Nxb4 {[%clk 0:02:15.8]} 17... Nxb4 {[%clk 0:01:44.6]} 18. Qxb4
{[%clk 0:02:16.7]} 18... Bxe4 {[%clk 0:01:39.2]} 19. Qa3 {[%clk 0:02:06.2]}
19... Bxf3 {[%clk 0:01:30]} 20. Bxf3 {[%clk 0:02:07.1]} 20... Bxd4 {[%clk
0:01:29.8]} 21. Rad1 {[%clk 0:02:02.1]} 21... e5 {[%clk 0:01:15.9]} 22. Rxd4
{[%clk 0:01:56.7]} 22... exd4 {[%clk 0:00:58.1]} 23. Bxd6 {[%clk 0:01:56.3]}
23... Re8 {[%clk 0:00:58]} 24. Rxe8 {[%clk 0:01:53.3]} 24... Qxe8 {[%clk
0:00:58.9]} 25. Bxb8 {[%clk 0:01:54]} 25... Qxb8 {[%clk 0:00:59.8]} 26. Qe7
{[%clk 0:01:47.5]} 26... Ne5 {[%clk 0:00:59.6]} 27. Bd1 {[%clk 0:01:18.5]} 27...
Kg8 {[%clk 0:00:34.5]} 28. f4 {[%clk 0:01:16.1]} 28... d3 {[%clk 0:00:35]} 29.
Qxe5 {[%clk 0:01:14.6]} 29... Qb6+ {[%clk 0:00:32.6]} 30. Kg2 {[%clk 0:01:13]}
30... Qc6+ {[%clk 0:00:32.7]} 31. Kf2 {[%clk 0:01:12.9]} 31... Qc1 {[%clk
0:00:29.7]} 32. Bb3 {[%clk 0:01:09.3]} 32... Qd2+ {[%clk 0:00:28.3]} 33. Kf3
{[%clk 0:01:09.6]} 33... Kh7 {[%clk 0:00:16.2]} 34. Qe7 {[%clk 0:01:08]} 1-0

[Event "Early-Titled-Tuesday-Blitz-April-16-2024"]
[Site "Chess.com"]
[Date "2024.04.16"]
[Round "2"]
[White "Shivananda1964"]
[Black "jaskol95"]
[Result "0-1"]
[WhiteElo "2337"]
[BlackElo "2540"]
[TimeControl "180+1"]
[EndTime "8:16:17 PDT"]
[Termination "jaskol95 won by resignation"]

1. e4 {[%clk 0:02:56.5]} 1... e6 {[%clk 0:02:58.1]} 2. d4 {[%clk 0:02:55.7]}
2... d5 {[%clk 0:02:58.9]} 3. Nd2 {[%clk 0:02:55.8]} 3... Be7 {[%clk 0:02:55.5]}
4. c3 {[%clk 0:02:42.8]} 4... c5 {[%clk 0:02:45.7]} 5. Ngf3 {[%clk 0:02:37.7]}
5... Nf6 {[%clk 0:02:44.5]} 6. e5 {[%clk 0:02:25.1]} 6... Nfd7 {[%clk
0:02:42.8]} 7. Be2 {[%clk 0:02:11.6]} 7... b6 {[%clk 0:02:43.1]} 8. Nf1 {[%clk
0:02:09.6]} 8... Ba6 {[%clk 0:02:42]} 9. Bxa6 {[%clk 0:02:03.3]} 9... Nxa6
{[%clk 0:02:42.9]} 10. a3 {[%clk 0:02:03.5]} 10... O-O {[%clk 0:02:35.7]} 11.
Ne3 {[%clk 0:02:00.9]} 11... f6 {[%clk 0:02:28.6]} 12. exf6 {[%clk 0:01:58.5]}
12... Bxf6 {[%clk 0:02:29]} 13. O-O {[%clk 0:01:58.5]} 13... Nc7 {[%clk
0:02:27.7]} 14. Ng4 {[%clk 0:01:57.6]} 14... cxd4 {[%clk 0:02:17.3]} 15. Nxd4
{[%clk 0:01:45.2]} 15... Nc5 {[%clk 0:01:56.1]} 16. Re1 {[%clk 0:01:31.6]} 16...
Qd6 {[%clk 0:01:49.7]} 17. Nxf6+ {[%clk 0:01:21.8]} 17... Rxf6 {[%clk
0:01:47.7]} 18. Bg5 {[%clk 0:01:12.6]} 18... Rg6 {[%clk 0:01:45.9]} 19. Bh4
{[%clk 0:01:10.6]} 19... Rf8 {[%clk 0:01:32.7]} 20. Bg3 {[%clk 0:01:07.6]} 20...
Qd7 {[%clk 0:01:32.4]} 21. Qe2 {[%clk 0:01:03]} 21... Ne4 {[%clk 0:01:31.7]} 22.
Bxc7 {[%clk 0:00:54]} 22... Qxc7 {[%clk 0:01:30.1]} 23. f3 {[%clk 0:00:53.8]}
23... Ng5 {[%clk 0:01:14.9]} 24. h4 {[%clk 0:00:49]} 24... Nh3+ {[%clk
0:01:15.2]} 25. Kh1 {[%clk 0:00:43.2]} 25... Nf4 {[%clk 0:01:08.1]} 26. Qe5
{[%clk 0:00:39]} 26... Qe7 {[%clk 0:00:56.1]} 27. h5 {[%clk 0:00:05.4]} 27...
Qh4+ {[%clk 0:00:55.2]} 0-1

[Event "Early-Titled-Tuesday-Blitz-April-16-2024"]
[Site "Chess.com"]
[Date "2024.04.16"]
[Round "2"]
[White "Matols"]
[Black "Alexei_Gubajdullin"]
[Result "0-1"]
[WhiteElo "2363"]
[BlackElo "2634"]
[TimeControl "180+1"]
[EndTime "8:16:20 PDT"]
[Termination "Alexei_Gubajdullin won on time"]

1. d4 {[%clk 0:02:59.5]} 1... Nf6 {[%clk 0:02:58.2]} 2. c4 {[%clk 0:02:58.9]}
2... g6 {[%clk 0:02:58.2]} 3. g3 {[%clk 0:02:58.9]} 3... Bg7 {[%clk 0:02:58.3]}
4. Bg2 {[%clk 0:02:59.4]} 4... O-O {[%clk 0:02:59.2]} 5. Nc3 {[%clk 0:02:59.2]}
5... d6 {[%clk 0:03:00.1]} 6. Nf3 {[%clk 0:02:59]} 6... Nbd7 {[%clk 0:03:01]} 7.
O-O {[%clk 0:02:58.8]} 7... e5 {[%clk 0:03:01.6]} 8. e4 {[%clk 0:02:58.1]} 8...
c6 {[%clk 0:03:01.7]} 9. h3 {[%clk 0:02:57.5]} 9... a5 {[%clk 0:03:01.3]} 10.
Re1 {[%clk 0:02:57.1]} 10... Re8 {[%clk 0:03:00.4]} 11. Rb1 {[%clk 0:02:53.8]}
11... exd4 {[%clk 0:02:53.2]} 12. Nxd4 {[%clk 0:02:54.7]} 12... Nc5 {[%clk
0:02:53.7]} 13. Bf4 {[%clk 0:02:45.8]} 13... Qb6 {[%clk 0:02:38.6]} 14. Bxd6
{[%clk 0:02:21.7]} 14... Rd8 {[%clk 0:02:30]} 15. e5 {[%clk 0:02:18.8]} 15...
Ne8 {[%clk 0:02:29.1]} 16. Nde2 {[%clk 0:01:47.9]} 16... Bf5 {[%clk 0:02:16.2]}
17. Rc1 {[%clk 0:01:18]} 17... Nxd6 {[%clk 0:02:14.6]} 18. exd6 {[%clk
0:01:16.9]} 18... Nd3 {[%clk 0:02:15.5]} 19. c5 {[%clk 0:01:10.2]} 19... Qxc5
{[%clk 0:02:12]} 20. Ne4 {[%clk 0:01:07]} 20... Qb5 {[%clk 0:02:02.6]} 21. a4
{[%clk 0:01:02.8]} 21... Qa6 {[%clk 0:02:01.1]} 22. Nc5 {[%clk 0:00:57]} 22...
Nxc5 {[%clk 0:01:56.7]} 23. Rxc5 {[%clk 0:00:57.9]} 23... Bf8 {[%clk 0:01:54.6]}
24. Qc1 {[%clk 0:00:35.3]} 24... Rxd6 {[%clk 0:01:50.2]} 25. Nf4 {[%clk
0:00:25]} 25... Qb6 {[%clk 0:01:46.2]} 26. Rc3 {[%clk 0:00:13.4]} 26... Bg7
{[%clk 0:01:44.8]} 27. Rce3 {[%clk 0:00:11.4]} 27... Rdd8 {[%clk 0:01:44.4]} 28.
b3 {[%clk 0:00:10.4]} 28... Bd4 {[%clk 0:01:40.3]} 29. Re7 {[%clk 0:00:09.1]}
29... Bxf2+ {[%clk 0:01:38.6]} 30. Kh2 {[%clk 0:00:09]} 30... Bxe1 {[%clk
0:01:38.3]} 31. Qxe1 {[%clk 0:00:09.9]} 31... Qxb3 {[%clk 0:01:37.1]} 32. Qe5
{[%clk 0:00:09.2]} 32... Qb4 {[%clk 0:01:25.9]} 33. Nh5 {[%clk 0:00:08.9]} 33...
gxh5 {[%clk 0:01:21.5]} 34. Qxf5 {[%clk 0:00:03.2]} 34... Qxe7 {[%clk
0:01:20.7]} 0-1

[Event "Early-Titled-Tuesday-Blitz-April-16-2024"]
[Site "Chess.com"]
[Date "2024.04.16"]
[Round "2"]
[White "Yan_Dyomin2010"]
[Black "FabianoCaruana"]
[Result "0-1"]
[WhiteElo "2647"]
[BlackElo "3089"]
[TimeControl "180+1"]
[EndTime "8:16:21 PDT"]
[Termination "FabianoCaruana won by resignation"]

1. e4 {[%clk 0:03:00.9]} 1... g6 {[%clk 0:03:00.9]} 2. d4 {[%clk 0:03:00.3]}
2... Bg7 {[%clk 0:03:01.8]} 3. Nf3 {[%clk 0:02:59.6]} 3... d6 {[%clk 0:03:02.4]}
4. h3 {[%clk 0:02:59.7]} 4... Nf6 {[%clk 0:03:02.4]} 5. Nc3 {[%clk 0:03:00.1]}
5... O-O {[%clk 0:03:03]} 6. Be3 {[%clk 0:02:59.9]} 6... Nc6 {[%clk 0:03:03.2]}
7. Bb5 {[%clk 0:02:57.2]} 7... a6 {[%clk 0:03:02.3]} 8. Bxc6 {[%clk 0:02:56.9]}
8... bxc6 {[%clk 0:03:03.2]} 9. Qd2 {[%clk 0:02:56.9]} 9... a5 {[%clk
0:03:02.8]} 10. Bh6 {[%clk 0:02:51.3]} 10... Bb7 {[%clk 0:02:53]} 11. Bxg7
{[%clk 0:02:50.9]} 11... Kxg7 {[%clk 0:02:53.9]} 12. O-O-O {[%clk 0:02:49.9]}
12... c5 {[%clk 0:02:53.3]} 13. dxc5 {[%clk 0:02:49.4]} 13... Bxe4 {[%clk
0:02:50.2]} 14. Nxe4 {[%clk 0:02:44.8]} 14... Nxe4 {[%clk 0:02:51.1]} 15. Qd4+
{[%clk 0:02:44.8]} 15... Nf6 {[%clk 0:02:50.5]} 16. h4 {[%clk 0:02:45.2]} 16...
Qb8 {[%clk 0:02:38.2]} 17. h5 {[%clk 0:02:44.4]} 17... Qb4 {[%clk 0:02:37.6]}
18. cxd6 {[%clk 0:02:41]} 18... cxd6 {[%clk 0:02:32.1]} 19. h6+ {[%clk
0:02:39.6]} 19... Kg8 {[%clk 0:02:31.1]} 20. Rhe1 {[%clk 0:02:39]} 20... Qxd4
{[%clk 0:02:16.6]} 21. Rxd4 {[%clk 0:02:39.9]} 21... Rfe8 {[%clk 0:02:14.4]} 22.
Nd2 {[%clk 0:02:31.6]} 22... d5 {[%clk 0:02:11.2]} 23. Re5 {[%clk 0:02:25.2]}
23... e6 {[%clk 0:02:08.3]} 24. c4 {[%clk 0:02:22.7]} 24... Kf8 {[%clk
0:02:03.4]} 25. g4 {[%clk 0:02:19.5]} 25... Rec8 {[%clk 0:01:52]} 26. Kb1 {[%clk
0:02:12.2]} 26... a4 {[%clk 0:01:47.7]} 27. g5 {[%clk 0:02:10.2]} 27... Nd7
{[%clk 0:01:47.7]} 28. Re1 {[%clk 0:02:10.7]} 28... Nb6 {[%clk 0:01:46.9]} 29.
Rc1 {[%clk 0:02:10.3]} 29... Ke7 {[%clk 0:01:43.2]} 30. f4 {[%clk 0:02:08.5]}
30... Rc5 {[%clk 0:01:36.3]} 31. b4 {[%clk 0:01:53.6]} 31... axb3 {[%clk
0:01:35]} 32. axb3 {[%clk 0:01:54.1]} 32... Rca5 {[%clk 0:01:11.5]} 33. c5
{[%clk 0:01:44]} 33... Nd7 {[%clk 0:01:11]} 34. b4 {[%clk 0:01:37.8]} 34... Ra4
{[%clk 0:01:10.2]} 35. c6 {[%clk 0:01:28.9]} 35... Nb6 {[%clk 0:01:09]} 36. Kb2
{[%clk 0:01:24.3]} 36... Ra2+ {[%clk 0:01:07]} 37. Kb1 {[%clk 0:01:23.6]} 37...
Kd6 {[%clk 0:00:51.4]} 38. Ne4+ {[%clk 0:00:48.6]} 38... Kc7 {[%clk 0:00:50.3]}
39. Nc3 {[%clk 0:00:49.2]} 39... Ra1+ {[%clk 0:00:47.7]} 40. Kc2 {[%clk
0:00:46]} 40... Rxc1+ {[%clk 0:00:48.6]} 41. Kxc1 {[%clk 0:00:46.5]} 41... Kxc6
{[%clk 0:00:48.5]} 42. Nd1 {[%clk 0:00:45]} 42... Nc4 {[%clk 0:00:45.4]} 43. Nf2
{[%clk 0:00:44.7]} 43... Ra1+ {[%clk 0:00:42.2]} 0-1

[Event "Early-Titled-Tuesday-Blitz-April-16-2024"]
[Site "Chess.com"]
[Date "2024.04.16"]
[Round "2"]
[White "Andrei_Skvortsov"]
[Black "JaackCamel"]
[Result "1-0"]
[WhiteElo "2656"]
[BlackElo "2231"]
[TimeControl "180+1"]
[EndTime "8:16:21 PDT"]
[Termination "Andrei_Skvortsov won on time"]

1. e4 {[%clk 0:03:00.9]} 1... e6 {[%clk 0:02:56.1]} 2. Nf3 {[%clk 0:02:56.3]}
2... d5 {[%clk 0:02:55.6]} 3. exd5 {[%clk 0:02:56.5]} 3... exd5 {[%clk 0:02:55]}
4. Bd3 {[%clk 0:02:55]} 4... c5 {[%clk 0:02:52.6]} 5. c3 {[%clk 0:02:54.7]} 5...
Nf6 {[%clk 0:02:51.1]} 6. O-O {[%clk 0:02:53.8]} 6... Be7 {[%clk 0:02:50.8]} 7.
h3 {[%clk 0:02:49.3]} 7... O-O {[%clk 0:02:49.9]} 8. Bc2 {[%clk 0:02:48]} 8...
d4 {[%clk 0:02:46.4]} 9. d3 {[%clk 0:02:48.2]} 9... Nc6 {[%clk 0:02:44.9]} 10.
Nbd2 {[%clk 0:02:48.7]} 10... Bf5 {[%clk 0:02:43.5]} 11. Ne4 {[%clk 0:02:44.7]}
11... h6 {[%clk 0:02:31.2]} 12. Ng3 {[%clk 0:02:29.3]} 12... Bg6 {[%clk
0:02:25]} 13. cxd4 {[%clk 0:02:26.2]} 13... Nxd4 {[%clk 0:02:20.4]} 14. Nxd4
{[%clk 0:02:26.4]} 14... cxd4 {[%clk 0:02:09.1]} 15. Ne2 {[%clk 0:02:18.6]}
15... Rc8 {[%clk 0:01:44.5]} 16. Bb3 {[%clk 0:02:14]} 16... Bd6 {[%clk
0:01:34.2]} 17. Nf4 {[%clk 0:02:08.7]} 17... Bxf4 {[%clk 0:01:31.9]} 18. Bxf4
{[%clk 0:02:07.7]} 18... Nd5 {[%clk 0:01:32]} 19. Bd2 {[%clk 0:02:03.7]} 19...
Qd6 {[%clk 0:01:29.3]} 20. Qf3 {[%clk 0:02:02.4]} 20... Rfd8 {[%clk 0:01:26.1]}
21. Rac1 {[%clk 0:01:53.4]} 21... Rxc1 {[%clk 0:01:25.4]} 22. Rxc1 {[%clk
0:01:54.3]} 22... Nb4 {[%clk 0:01:17.7]} 23. Qxb7 {[%clk 0:01:53.5]} 23... Nxd3
{[%clk 0:01:13.6]} 24. Rc6 {[%clk 0:01:53.6]} 24... Qe5 {[%clk 0:01:04.8]} 25.
Rxg6 {[%clk 0:01:52.3]} 25... Qf5 {[%clk 0:00:56.8]} 26. Rg3 {[%clk 0:01:27.5]}
26... Qxf2+ {[%clk 0:00:54.9]} 27. Kh2 {[%clk 0:01:26.3]} 27... Ne5 {[%clk
0:00:35]} 28. Bxh6 {[%clk 0:01:03.4]} 28... g6 {[%clk 0:00:24.9]} 29. Qe7 {[%clk
0:00:58.5]} 1-0

[Event "Early-Titled-Tuesday-Blitz-April-16-2024"]
[Site "Chess.com"]
[Date "2024.04.16"]
[Round "2"]
[White "Stanbad1"]
[Black "DarkAlekhine"]
[Result "1-0"]
[WhiteElo "2562"]
[BlackElo "2761"]
[TimeControl "180+1"]
[EndTime "8:16:22 PDT"]
[Termination "Stanbad1 won by resignation"]

1. d4 {[%clk 0:03:00.9]} 1... c5 {[%clk 0:02:57.3]} 2. d5 {[%clk 0:03:00.5]}
2... Nf6 {[%clk 0:02:57.5]} 3. Nc3 {[%clk 0:03:01]} 3... d6 {[%clk 0:02:57.8]}
4. e4 {[%clk 0:03:01.6]} 4... g6 {[%clk 0:02:57.8]} 5. Nf3 {[%clk 0:03:02]} 5...
Bg7 {[%clk 0:02:58.4]} 6. Bc4 {[%clk 0:02:59.6]} 6... O-O {[%clk 0:02:58.1]} 7.
O-O {[%clk 0:02:59.6]} 7... Bg4 {[%clk 0:02:58]} 8. h3 {[%clk 0:02:59.2]} 8...
Bxf3 {[%clk 0:02:58.5]} 9. Qxf3 {[%clk 0:02:59.9]} 9... Nbd7 {[%clk 0:02:59.1]}
10. Be2 {[%clk 0:03:00.5]} 10... a6 {[%clk 0:02:57.5]} 11. a4 {[%clk 0:03:00.3]}
11... Ne8 {[%clk 0:02:57.6]} 12. Qg3 {[%clk 0:02:59.9]} 12... Nc7 {[%clk
0:02:55]} 13. Ra3 {[%clk 0:02:55.2]} 13... b6 {[%clk 0:02:51.2]} 14. f4 {[%clk
0:02:53]} 14... Rb8 {[%clk 0:02:48.9]} 15. Be3 {[%clk 0:02:46.9]} 15... b5
{[%clk 0:02:48.7]} 16. axb5 {[%clk 0:02:47.2]} 16... axb5 {[%clk 0:02:49.6]} 17.
Ra7 {[%clk 0:02:47.4]} 17... b4 {[%clk 0:02:46.8]} 18. Nd1 {[%clk 0:02:46.9]}
18... Ra8 {[%clk 0:02:33.3]} 19. Rxa8 {[%clk 0:02:45]} 19... Qxa8 {[%clk
0:02:34.2]} 20. Bg4 {[%clk 0:02:39.9]} 20... Nb6 {[%clk 0:02:24.9]} 21. f5
{[%clk 0:02:31.4]} 21... Nc4 {[%clk 0:02:22.7]} 22. Bg5 {[%clk 0:02:28.7]} 22...
Be5 {[%clk 0:01:39.2]} 23. Qb3 {[%clk 0:02:17.2]} 23... Na5 {[%clk 0:01:27.2]}
24. Qf3 {[%clk 0:02:14.4]} 24... f6 {[%clk 0:01:13.9]} 25. Bh6 {[%clk
0:02:11.4]} 25... Nc4 {[%clk 0:01:07]} 26. fxg6 {[%clk 0:02:08.8]} 26... hxg6
{[%clk 0:01:05.4]} 27. h4 {[%clk 0:01:46.8]} 27... Rf7 {[%clk 0:00:51.8]} 28.
Qh3 {[%clk 0:01:44.4]} 28... Rh7 {[%clk 0:00:36.5]} 29. Bc1 {[%clk 0:01:41.8]}
29... Qa1 {[%clk 0:00:30.9]} 30. b3 {[%clk 0:01:40.7]} 30... Qd4+ {[%clk
0:00:24.4]} 31. Nf2 {[%clk 0:01:35.1]} 31... Nb6 {[%clk 0:00:18.9]} 32. h5
{[%clk 0:01:29]} 32... gxh5 {[%clk 0:00:11]} 33. Bf5 {[%clk 0:01:28.8]} 33...
Rg7 {[%clk 0:00:10.5]} 34. Bh6 {[%clk 0:01:25.6]} 34... Rg3 {[%clk 0:00:09.4]}
35. Qxh5 {[%clk 0:01:25.7]} 35... Qc3 {[%clk 0:00:05.5]} 36. Ng4 {[%clk
0:01:19.6]} 36... Bd4+ {[%clk 0:00:05.2]} 37. Kh2 {[%clk 0:01:18.4]} 37... Be5
{[%clk 0:00:05.2]} 38. Bf4 {[%clk 0:01:18.5]} 38... Bxf4 {[%clk 0:00:05.3]} 39.
Rxf4 {[%clk 0:01:19.4]} 39... Rxg2+ {[%clk 0:00:04.8]} 40. Kxg2 {[%clk
0:01:18.7]} 40... Qxc2+ {[%clk 0:00:04.9]} 41. Rf2 {[%clk 0:01:19]} 1-0

[Event "Early-Titled-Tuesday-Blitz-April-16-2024"]
[Site "Chess.com"]
[Date "2024.04.16"]
[Round "2"]
[White "AryanTari"]
[Black "GMCarbone"]
[Result "1-0"]
[WhiteElo "2936"]
[BlackElo "2601"]
[TimeControl "180+1"]
[EndTime "8:16:31 PDT"]
[Termination "AryanTari won by resignation"]

1. e4 {[%clk 0:02:55.2]} 1... e5 {[%clk 0:03:00.2]} 2. Nf3 {[%clk 0:02:55.2]}
2... Nc6 {[%clk 0:03:00.8]} 3. d4 {[%clk 0:02:55.3]} 3... exd4 {[%clk
0:03:00.8]} 4. Nxd4 {[%clk 0:02:50]} 4... Nf6 {[%clk 0:03:00.9]} 5. Nxc6 {[%clk
0:02:44.5]} 5... bxc6 {[%clk 0:03:01.8]} 6. Nd2 {[%clk 0:02:44]} 6... d5 {[%clk
0:03:01.1]} 7. exd5 {[%clk 0:02:40.6]} 7... cxd5 {[%clk 0:03:01.1]} 8. Bb5+
{[%clk 0:02:41.3]} 8... Bd7 {[%clk 0:03:00]} 9. Bxd7+ {[%clk 0:02:41.6]} 9...
Qxd7 {[%clk 0:02:59.3]} 10. O-O {[%clk 0:02:42.4]} 10... Be7 {[%clk 0:02:58.5]}
11. b3 {[%clk 0:02:42.8]} 11... O-O {[%clk 0:02:58]} 12. Bb2 {[%clk 0:02:43.2]}
12... c5 {[%clk 0:02:47.8]} 13. Qf3 {[%clk 0:02:30]} 13... Rae8 {[%clk
0:02:34.2]} 14. Rad1 {[%clk 0:02:28.7]} 14... Bd8 {[%clk 0:02:23.1]} 15. Nc4
{[%clk 0:02:18.4]} 15... Qe6 {[%clk 0:02:15.6]} 16. Bxf6 {[%clk 0:01:40.4]}
16... dxc4 {[%clk 0:02:14.1]} 17. Bc3 {[%clk 0:01:30.4]} 17... cxb3 {[%clk
0:02:09.6]} 18. axb3 {[%clk 0:01:25]} 18... Bb6 {[%clk 0:01:27.9]} 19. Rfe1
{[%clk 0:01:19.5]} 19... Qg6 {[%clk 0:01:27.9]} 20. Rxe8 {[%clk 0:01:04.4]}
20... Rxe8 {[%clk 0:01:28.8]} 21. Rd3 {[%clk 0:01:02.2]} 21... h6 {[%clk
0:01:27]} 22. g3 {[%clk 0:01:01.7]} 22... Qe6 {[%clk 0:01:24.1]} 23. Re3 {[%clk
0:00:57.3]} 23... Qd7 {[%clk 0:01:23.8]} 24. Rxe8+ {[%clk 0:00:54.5]} 24... Qxe8
{[%clk 0:01:24.7]} 25. Qg4 {[%clk 0:00:54.7]} 25... f6 {[%clk 0:01:08.7]} 26.
Bxf6 {[%clk 0:00:53.5]} 26... Qf7 {[%clk 0:01:00.5]} 27. Bc3 {[%clk 0:00:48.6]}
27... c4 {[%clk 0:00:59.7]} 28. Qxc4 {[%clk 0:00:42.1]} 28... Bxf2+ {[%clk
0:00:59.5]} 29. Kg2 {[%clk 0:00:42.1]} 29... Qxc4 {[%clk 0:00:57.1]} 30. bxc4
{[%clk 0:00:43]} 30... Bb6 {[%clk 0:00:31.7]} 31. Kf3 {[%clk 0:00:43.2]} 31...
a5 {[%clk 0:00:23.8]} 32. Ke4 {[%clk 0:00:43.2]} 32... a4 {[%clk 0:00:24.4]} 33.
Kd5 {[%clk 0:00:43.4]} 33... Kf7 {[%clk 0:00:23.3]} 34. c5 {[%clk 0:00:40.5]}
34... Bc7 {[%clk 0:00:23.6]} 35. Kc6 {[%clk 0:00:40.2]} 35... Bb8 {[%clk
0:00:19.8]} 36. Kb7 {[%clk 0:00:40.2]} 1-0

[Event "Early-Titled-Tuesday-Blitz-April-16-2024"]
[Site "Chess.com"]
[Date "2024.04.16"]
[Round "2"]
[White "Salem-AR"]
[Black "JonasEilenberg"]
[Result "1-0"]
[WhiteElo "3028"]
[BlackElo "2619"]
[TimeControl "180+1"]
[EndTime "8:16:32 PDT"]
[Termination "Salem-AR won by resignation"]

1. d4 {[%clk 0:03:00.9]} 1... d5 {[%clk 0:03:00.2]} 2. Nf3 {[%clk 0:03:00.7]}
2... Bf5 {[%clk 0:02:58.9]} 3. e3 {[%clk 0:02:59.1]} 3... e6 {[%clk 0:02:58.8]}
4. c4 {[%clk 0:02:59.1]} 4... c6 {[%clk 0:02:56.1]} 5. Nc3 {[%clk 0:02:58.5]}
5... Nf6 {[%clk 0:02:55.5]} 6. Nh4 {[%clk 0:02:58.2]} 6... Be4 {[%clk
0:02:53.8]} 7. f3 {[%clk 0:02:58.4]} 7... Bg6 {[%clk 0:02:54.1]} 8. Nxg6 {[%clk
0:02:58.5]} 8... hxg6 {[%clk 0:02:55]} 9. Qb3 {[%clk 0:02:56.9]} 9... Qc7 {[%clk
0:02:48.7]} 10. Bd2 {[%clk 0:02:56.9]} 10... Nbd7 {[%clk 0:02:48.1]} 11. O-O-O
{[%clk 0:02:55.1]} 11... O-O-O {[%clk 0:02:44.5]} 12. Kb1 {[%clk 0:02:53.6]}
12... Rxh2 {[%clk 0:02:39.3]} 13. Rg1 {[%clk 0:02:51.5]} 13... Bd6 {[%clk
0:02:26]} 14. cxd5 {[%clk 0:02:51.1]} 14... exd5 {[%clk 0:02:25.9]} 15. e4
{[%clk 0:02:50.4]} 15... dxe4 {[%clk 0:02:16.6]} 16. fxe4 {[%clk 0:02:51.3]}
16... Bf4 {[%clk 0:02:17]} 17. Nb5 {[%clk 0:02:42.4]} 17... cxb5 {[%clk
0:01:48]} 18. Rc1 {[%clk 0:02:41.3]} 18... Nc5 {[%clk 0:01:46.4]} 19. Rxc5
{[%clk 0:02:27.4]} 19... Qxc5 {[%clk 0:01:46.6]} 20. dxc5 {[%clk 0:02:25.2]}
20... Rxd2 {[%clk 0:01:47.5]} 21. Bxb5 {[%clk 0:02:23.5]} 21... Be5 {[%clk
0:01:40.4]} 22. Kc1 {[%clk 0:01:44.7]} 22... Nxe4 {[%clk 0:01:31]} 23. c6 {[%clk
0:00:57]} 23... Bxb2+ {[%clk 0:01:19.1]} 24. Qxb2 {[%clk 0:00:57.5]} 24... Rxb2
{[%clk 0:01:19.9]} 25. cxb7+ {[%clk 0:00:54.4]} 25... Kxb7 {[%clk 0:01:18]} 26.
Kxb2 {[%clk 0:00:55.3]} 26... g5 {[%clk 0:01:12.9]} 27. Bc4 {[%clk 0:00:53.8]}
27... Nd6 {[%clk 0:01:12]} 28. Bd5+ {[%clk 0:00:52.9]} 28... Kb6 {[%clk
0:01:12.6]} 29. Rc1 {[%clk 0:00:52.1]} 29... Rh6 {[%clk 0:01:07.6]} 30. Rc6+
{[%clk 0:00:51.6]} 30... Kb5 {[%clk 0:01:08.1]} 31. Kb3 {[%clk 0:00:51.7]} 31...
Nb7 {[%clk 0:00:59.6]} 32. a4+ {[%clk 0:00:46.4]} 32... Ka5 {[%clk 0:00:59.8]}
33. Rxh6 {[%clk 0:00:41.8]} 33... Nc5+ {[%clk 0:00:57.7]} 34. Kc4 {[%clk
0:00:42.4]} 34... gxh6 {[%clk 0:00:58.1]} 35. Kxc5 {[%clk 0:00:42.9]} 35... Kxa4
{[%clk 0:00:58.7]} 36. Bxf7 {[%clk 0:00:43]} 36... a5 {[%clk 0:00:56.7]} 37. g4
{[%clk 0:00:41.8]} 37... Ka3 {[%clk 0:00:56.3]} 38. Kb5 {[%clk 0:00:42.4]} 38...
a4 {[%clk 0:00:55.4]} 39. Ka5 {[%clk 0:00:43.1]} 39... Kb2 {[%clk 0:00:40.7]}
40. Kxa4 {[%clk 0:00:42.9]} 40... Kc3 {[%clk 0:00:41.6]} 41. Kb5 {[%clk
0:00:42.2]} 41... Kd4 {[%clk 0:00:41.8]} 42. Kc6 {[%clk 0:00:41.8]} 42... Ke5
{[%clk 0:00:41]} 43. Kd7 {[%clk 0:00:41.2]} 43... Kf6 {[%clk 0:00:41.4]} 44. Bh5
{[%clk 0:00:40.6]} 1-0